lending/lending_fUSD_20240809
["ID","MTS","AMOUNT","RATE_DAILY","PERIOD"]
[334560554,1723213865234,-366.61282358,0.0002104,4]
[334560555,1723213865244,-150.0,0.00021043,4]
[334560556,1723213865254,-3100.0,0.00021092,2]
[334560557,1723213865264,-2000.0,0.00021095,2]
[334560558,1723213865274,-2800.0,0.00021135,2]
[334560559,1723213865284,-500.0,0.00021142,2]
[334560560,1723213865295,-500.0,0.00021157,2]
[334560561,1723213865311,-600.0,0.00021166,2]
[334560562,1723213865321,-3100.0,0.00021168,2]
[334560563,1723213865333,-500.0,0.00021172,2]
[334560564,1723213865343,-600.0,0.00021179,2]
[334560565,1723213865353,-366.61282358,0.00021182,4]
[334560566,1723213865363,-150.0,0.00021196,4]
[334560567,1723213865373,-4982.4,0.000212,2]
[334560568,1723213865384,-600.0,0.00021211,2]
[334560569,1723213865394,-3100.0,0.00021227,2]
[334560570,1723213865404,-958.14665341,0.00021228,2]
[334560571,1723213865415,-500.0,0.00021228,2]
[334560572,1723213865424,-500.0,0.0002128,2]
[334560573,1723213865438,-366.61282358,0.00021323,4]
[334560574,1723213865449,-900.0,0.00021329,2]
[334560575,1723213865459,-2800.0,0.00021341,2]
[334560576,1723213865468,-150.0,0.00021348,4]
[334560577,1723213865479,-150.0,0.00021348,4]
[334560578,1723213865490,-151.0,0.00021353,2]
[334560579,1723213865501,-2000.0,0.00021369,2]
[334560580,1723213865512,-600.0,0.00021369,2]
[334560581,1723213865524,-599.57,0.0002137,2]
[334560582,1723213865535,-5909.02,0.0002137,2]
[334560583,1723213865545,-500.0,0.00021378,2]
[334560584,1723213865563,-600.0,0.00021379,2]
[334560585,1723213865573,-600.0,0.00021405,2]
[334560586,1723213865583,-3100.0,0.00021409,2]
[334560587,1723213865593,-298.0,0.0002143,2]
[334560588,1723213865603,-200.0,0.0002143,2]
[334560589,1723213865613,-600.0,0.00021454,2]
[334560590,1723213865623,-835.07,0.00021464,2]
[334560591,1723213865632,-835.07,0.00021464,2]
[334560592,1723213865642,-835.07,0.00021464,2]
[334560593,1723213865652,-835.07,0.00021464,2]
[334560594,1723213865661,-835.07,0.00021464,2]
[334560595,1723213865672,-366.61282358,0.00021465,4]
[334560596,1723213865682,-900.0,0.00021472,2]
[334560597,1723213865693,-1700.0,0.00021479,2]
[334560598,1723213865702,-1700.0,0.00021486,2]
[334560599,1723213865712,-2000.0,0.00021486,2]
[334560600,1723213865722,-3000.0,0.00021486,2]
[334560601,1723213865731,-3000.0,0.00021486,2]
[334560602,1723213865740,-600.0,0.00021499,2]
[334560603,1723213865750,-150.0,0.000215,4]
[334560604,1723213865759,-150.0,0.000215,2]
[334560605,1723213865768,-150.0,0.000215,4]
[334560606,1723213865779,-500.0,0.00021513,2]
[334560607,1723213865788,-1700.0,0.00021519,2]
[334560608,1723213865800,-600.0,0.00021533,2]
[334560609,1723213865813,-500.0,0.00021541,2]
[334560610,1723213865823,-500.0,0.00021549,2]
[334560611,1723213865832,-500.0,0.00021555,2]
[334560612,1723213865842,-900.0,0.0002157,2]
[334560613,1723213865851,-500.0,0.00021572,2]
[334560614,1723213865860,-500.0,0.00021584,2]
[334560615,1723213865870,-3100.0,0.00021586,2]
[334560616,1723213865880,-366.61282358,0.00021606,4]
[334560617,1723213865890,-1700.0,0.00021616,2]
[334560618,1723213865900,-158.12276446,0.0002164,2]
[334560619,1723213865910,-600.0,0.00021641,2]
[334560620,1723213865919,-2000.0,0.00021643,2]
[334560621,1723213865928,-500.0,0.00021652,2]
[334560622,1723213865938,-150.0,0.00021652,4]
[334560623,1723213865947,-362.37,0.00021674,2]
[334560624,1723213865956,-600.0,0.00021684,2]
[334560625,1723213865965,-900.0,0.00021709,2]
[334560626,1723213865975,-500.0,0.00021716,2]
[334560627,1723213865984,-600.0,0.00021722,2]
[334560628,1723213865993,-500.0,0.00021724,2]
[334560629,1723213866004,-900.0,0.0002173,2]
[334560630,1723213866013,-366.61282358,0.00021747,4]
[334560631,1723213866023,-500.0,0.00021752,2]
[334560632,1723213866032,-900.0,0.00021752,2]
[334560633,1723213866042,-900.0,0.00021759,2]
[334560634,1723213866056,-500.0,0.00021767,2]
[334560635,1723213866065,-151.0,0.00021778,2]
[334560636,1723213866074,-2800.0,0.00021797,2]
[334560637,1723213866084,-150.0,0.00021804,4]
[334560638,1723213866093,-3100.0,0.00021818,2]
[334560639,1723213866102,-500.0,0.00021831,2]
[334560640,1723213866112,-298.0,0.0002187,2]
[334560641,1723213866121,-200.0,0.0002187,2]
[334560642,1723213866131,-500.0,0.00021874,2]
[334560643,1723213866140,-3100.0,0.00021875,2]
[334560644,1723213866151,-500.0,0.00021888,2]
[334560645,1723213866160,-366.61282358,0.00021889,4]
[334560646,1723213866169,-2800.0,0.00021893,2]
[334560647,1723213866179,-200.0,0.000219,2]
[334560648,1723213866188,-232.12286516,0.000219,30]
[334560649,1723213866198,-3636.0,0.000219,2]
[334560650,1723213866208,-797.29664355,0.000219,2]
[334560651,1723213866218,-2000.0,0.000219,2]
[334560652,1723213866228,-500.0,0.000219,2]
[334560653,1723213866238,-1200.0,0.000219,2]
[334560654,1723213866248,-279.16483387,0.000219,2]
[334560655,1723213866258,-500.0,0.00021908,2]
[334560656,1723213866268,-600.0,0.00021913,2]
[334560657,1723213866278,-50000.0,0.00021916,4]
[334560658,1723213866288,-1911.64334489,0.00021917,2]
[334560659,1723213866298,-1792.75,0.00021918,2]
[334560660,1723213866320,-151.0,0.00021918,2]
[334560661,1723213866333,-151.0,0.00021918,2]
[334560662,1723213866343,-151.0,0.00021918,2]
[334560663,1723213866353,-151.0,0.00021918,2]
[334560664,1723213866362,-151.0,0.00021918,2]
[334560665,1723213866372,-151.0,0.00021918,2]
[334560666,1723213866382,-151.0,0.00021918,2]
[334560667,1723213866392,-155.64592,0.00021918,2]
[334560668,1723213866401,-150.13,0.00021918,2]
[334560669,1723213866411,-375.4,0.00021918,2]
[334560670,1723213866425,-150.0,0.00021918,2]
[334560671,1723213866434,-150.0,0.00021918,2]
[334560672,1723213866443,-150.0,0.00021918,2]
[334560673,1723213866453,-150.0,0.00021918,2]
[334560674,1723213866463,-150.0,0.00021918,2]
[334560675,1723213866472,-150.0,0.00021918,2]
[334560676,1723213866481,-176.50561346,0.00021918,2]
[334560677,1723213866492,-150.0,0.00021918,2]
[334560678,1723213866502,-150.0,0.00021918,2]
[334560679,1723213866511,-150.0,0.00021918,2]
[334560680,1723213866521,-2800.0,0.00021925,2]
[334560681,1723213866530,-150.0,0.00021957,4]
[334560682,1723213866539,-150.0,0.00021957,4]
[334560683,1723213866548,-500.0,0.0002197,2]
[334560684,1723213866557,-942.91245341,0.00021977,2]
[334560685,1723213866566,-500.0,0.00021987,2]
[334560686,1723213866576,-2509.0,0.00022,2]
[334560687,1723213866586,-371.98698346,0.00022,2]
[334560688,1723213866595,-2500.0,0.00022,2]
[334560689,1723213866604,-242.07644878,0.00022,2]
[334560690,1723213866613,-1069.24907524,0.00022,2]
[334560691,1723213866623,-850.0,0.00022,2]
[334560692,1723213866632,-3100.0,0.00022004,2]
[334560693,1723213866641,-366.61282358,0.0002203,4]
[334560694,1723213866651,-500.0,0.00022033,2]
[334560695,1723213866661,-800.0,0.00022034,2]
[334560696,1723213866670,-600.0,0.00022065,2]
[334560697,1723213866680,-1700.0,0.00022074,2]
[334560698,1723213866690,-810.0,0.00022077,2]
[334560699,1723213866699,-1000.0,0.00022078,2]
[334560700,1723213866708,-1000.0,0.00022078,2]
[334560701,1723213866718,-3100.0,0.0002208,2]
[334560702,1723213866727,-150.0,0.00022109,4]
[334560703,1723213866737,-2800.0,0.00022109,2]
[334560704,1723213866746,-227.04094966,0.0002211,2]
[334560705,1723213866756,-1700.0,0.00022124,2]
[334560706,1723213866765,-1700.0,0.00022132,2]
[334560707,1723213866775,-500.0,0.00022159,2]
[334560708,1723213866784,-600.0,0.00022162,2]
[334560709,1723213866794,-366.61282358,0.00022172,4]
[334560710,1723213866811,-150.55,0.00022174,2]
[334560711,1723213866821,-2800.0,0.00022183,2]
[334560712,1723213866930,-500.0,0.00022195,2]
[334560713,1723213866940,-150.0,0.000222,4]
[334560714,1723213866950,-600.0,0.00022226,2]
[334560715,1723213866960,-2800.0,0.00022227,2]
[334560716,1723213866970,-600.0,0.00022252,2]
[334560717,1723213866980,-900.0,0.00022253,2]
[334560718,1723213866989,-150.0,0.00022261,4]
[334560719,1723213867000,-500.0,0.00022261,2]
[334560720,1723213867009,-150.0,0.00022268,2]
[334560721,1723213867018,-298.0,0.000223,2]
[334560722,1723213867028,-200.0,0.000223,2]
[334560723,1723213867037,-3100.0,0.00022303,2]
[334560724,1723213867047,-366.61282358,0.00022313,4]
[334560725,1723213867061,-900.0,0.00022314,2]
[334560726,1723213867070,-500.0,0.00022316,2]
[334560727,1723213867080,-500.0,0.0002235,2]
[334560728,1723213867090,-166.79266455,0.00022379,2]
[334560729,1723213867099,-900.0,0.00022383,2]
[334560730,1723213867109,-500.0,0.00022389,2]
[334560731,1723213867118,-600.0,0.00022401,2]
[334560732,1723213867127,-150.0,0.00022413,4]
[334560733,1723213867137,-1700.0,0.00022417,2]
[334560734,1723213867146,-185.06951542,0.00022421,2]
[334560735,1723213867157,-500.0,0.00022428,2]
[334560736,1723213867167,-366.61282358,0.00022455,4]
[334560737,1723213867176,-3100.0,0.00022464,2]
[334560738,1723213867186,-500.0,0.00022465,2]
[334560739,1723213867195,-500.0,0.00022465,2]
[334560740,1723213867205,-500.0,0.00022465,2]
[334560741,1723213867214,-500.0,0.00022465,2]
[334560742,1723213867224,-500.0,0.00022465,2]
[334560743,1723213867233,-500.0,0.00022465,2]
[334560744,1723213867242,-336.11637105,0.00022465,2]
[334560745,1723213867252,-1000.0,0.00022466,2]
[334560746,1723213867261,-150.10767656,0.00022467,2]
[334560747,1723213867270,-33482.57796511,0.000225,2]
[334560748,1723213867280,-1700.0,0.00022501,2]
[334560749,1723213867290,-500.0,0.00022537,2]
[334560750,1723213867299,-900.0,0.00022552,2]
[334560751,1723213867317,-500.7,0.00022555,2]
[334560752,1723213867326,-500.0,0.00022555,2]
[334560753,1723213867336,-600.0,0.00022558,2]
[334560754,1723213867346,-500.0,0.00022558,2]
[334560755,1723213867355,-150.0,0.00022565,4]
[334560756,1723213867365,-150.0,0.00022565,4]
[334560757,1723213867374,-3100.0,0.00022577,2]
[334560758,1723213867387,-500.0,0.0002258,2]
[334560759,1723213867398,-2800.0,0.00022581,2]
[334560760,1723213867408,-1700.0,0.00022582,2]
[334560761,1723213867418,-2000.0,0.00022582,2]
[334560762,1723213867430,-3000.0,0.00022582,2]
[334560763,1723213867440,-3000.0,0.00022582,2]
[334560764,1723213867450,-500.0,0.00022592,2]
[334560765,1723213867461,-500.0,0.00022593,2]
[334560766,1723213867471,-366.61282358,0.00022596,4]
[334560767,1723213867481,-2800.0,0.00022602,2]
[334560768,1723213867490,-186.5,0.00022603,2]
[334560769,1723213867500,-500.0,0.00022626,2]
[334560770,1723213867512,-500.0,0.00022634,2]
[334560771,1723213867523,-500.0,0.00022646,2]
[334560772,1723213867533,-546.90301661,0.00022655,2]
[334560773,1723213867543,-500.0,0.00022669,2]
[334560774,1723213867558,-500.0,0.00022684,2]
[334560775,1723213867568,-600.0,0.00022686,2]
[334560776,1723213867578,-500.0,0.0002269,2]
[334560777,1723213867588,-4982.4,0.000227,7]
[334560778,1723213867597,-150.0,0.00022717,4]
[334560779,1723213867608,-366.61282358,0.00022737,4]
[334560780,1723213867617,-298.0,0.0002274,2]
[334560781,1723213867627,-200.0,0.0002274,2]
[334560782,1723213867637,-900.0,0.00022751,2]
[334560783,1723213867647,-1700.0,0.00022756,2]
[334560784,1723213867657,-500.0,0.00022757,2]
[334560785,1723213867667,-2800.0,0.00022758,2]
[334560786,1723213867676,-500.0,0.00022779,2]
[334560787,1723213867686,-600.0,0.000228,2]
[334560788,1723213867696,-6198.0,0.00022813,2]
[334560789,1723213867706,-600.0,0.00022866,2]
[334560790,1723213867715,-150.0,0.0002287,4]
[334560791,1723213867725,-366.61282358,0.00022879,4]
[334560792,1723213867734,-500.0,0.00022912,2]
[334560793,1723213867744,-150.13,0.00022914,2]
[334560794,1723213867754,-600.0,0.00022918,2]
[334560795,1723213867764,-500.0,0.00022941,2]
[334560796,1723213867773,-500.0,0.00022951,2]
[334560797,1723213867783,-500.0,0.00022994,2]
[334560798,1723213867792,-247.0,0.00022996,2]
[334560799,1723213867807,-150.0,0.00023,4]
[334560800,1723213867816,-416.41814567,0.00023,2]
[334560801,1723213867826,-859.64,0.00023,12]
[334560802,1723213867836,-500.0,0.00023,10]
[334560803,1723213867846,-2500.0,0.00023,2]
[334560804,1723213867856,-173.0,0.00023,2]
[334560805,1723213867866,-1296.1735739,0.00023,2]
[334560806,1723213867877,-155.10117215,0.00023,2]
[334560807,1723213867887,-173.0,0.00023,2]
[334560808,1723213867898,-150.1,0.00023,2]
[334560809,1723213867907,-150.1,0.00023,2]
[334560810,1723213867918,-150.1,0.00023,2]
[334560811,1723213867927,-150.1,0.00023,2]
[334560812,1723213867937,-150.1,0.00023,2]
[334560813,1723213867947,-150.1,0.00023,2]
[334560814,1723213867957,-150.1,0.00023,2]
[334560815,1723213867967,-150.1,0.00023,2]
[334560816,1723213867977,-150.1,0.00023,2]
[334560817,1723213867987,-150.1,0.00023,2]
[334560818,1723213867998,-150.1,0.00023,2]
[334560819,1723213868008,-150.1,0.00023,2]
[334560820,1723213868018,-150.1,0.00023,2]
[334560821,1723213868028,-150.1,0.00023,2]
[334560822,1723213868039,-150.1,0.00023,2]
[334560823,1723213868051,-150.1,0.00023,2]
[334560824,1723213868063,-150.1,0.00023,2]
[334560825,1723213868074,-150.1,0.00023,2]
[334560826,1723213868085,-150.1,0.00023,2]
[334560827,1723213868095,-150.1,0.00023,2]
[334560828,1723213868107,-150.1,0.00023,2]
[334560829,1723213868117,-150.1,0.00023,2]
[334560830,1723213868127,-150.1,0.00023,2]
[334560831,1723213868138,-150.1,0.00023,2]
[334560832,1723213868149,-150.1,0.00023,2]
[334560833,1723213868159,-150.1,0.00023,2]
[334560834,1723213868168,-150.1,0.00023,2]
[334560835,1723213868178,-150.1,0.00023,2]
[334560836,1723213868189,-150.1,0.00023,2]
[334560837,1723213868199,-150.1,0.00023,2]
[334560838,1723213868210,-150.1,0.00023,2]
[334560839,1723213868221,-150.1,0.00023,2]
[334560840,1723213868231,-150.1,0.00023,2]
[334560841,1723213868243,-150.1,0.00023,2]
[334560842,1723213868253,-150.1,0.00023,2]
[334560843,1723213868263,-150.1,0.00023,2]
[334560844,1723213868272,-150.1,0.00023,2]
[334560845,1723213868279,-150.1,0.00023,2]
[334560846,1723213868289,-150.1,0.00023,2]
[334560847,1723213868299,-150.1,0.00023,2]
[334560848,1723213868317,-150.1,0.00023,2]
[334560849,1723213868327,-150.1,0.00023,2]
[334560850,1723213868337,-150.1,0.00023,2]
[334560851,1723213868347,-150.1,0.00023,2]
[334560852,1723213868357,-150.1,0.00023,2]
[334560853,1723213868366,-150.1,0.00023,2]
[334560854,1723213868376,-150.1,0.00023,2]
[334560855,1723213868386,-150.1,0.00023,2]
[334560856,1723213868396,-150.1,0.00023,2]
[334560857,1723213868406,-150.1,0.00023,2]
[334560858,1723213868420,-150.1,0.00023,2]
[334560859,1723213868433,-150.1,0.00023,2]
[334560860,1723213868443,-150.1,0.00023,2]
[334560861,1723213868453,-150.1,0.00023,2]
[334560862,1723213868464,-150.1,0.00023,2]
[334560863,1723213868473,-150.1,0.00023,2]
[334560864,1723213868483,-150.1,0.00023,2]
[334560865,1723213868493,-150.1,0.00023,2]
[334560866,1723213868503,-150.1,0.00023,2]
[334560867,1723213868514,-150.1,0.00023,2]
[334560868,1723213868523,-150.1,0.00023,2]
[334560869,1723213868533,-150.1,0.00023,2]
[334560870,1723213868543,-150.1,0.00023,2]
[334560871,1723213868558,-150.1,0.00023,2]
[334560872,1723213868567,-150.1,0.00023,2]
[334560873,1723213868577,-150.1,0.00023,2]
[334560874,1723213868587,-150.1,0.00023,2]
[334560875,1723213868597,-150.1,0.00023,2]
[334560876,1723213868607,-150.1,0.00023,2]
[334560877,1723213868617,-150.1,0.00023,2]
[334560878,1723213868627,-150.1,0.00023,2]
[334560879,1723213868636,-150.1,0.00023,2]
[334560880,1723213868645,-150.1,0.00023,2]
[334560881,1723213868656,-150.1,0.00023,2]
[334560882,1723213868666,-150.1,0.00023,2]
[334560883,1723213868675,-150.1,0.00023,2]
[334560884,1723213868685,-150.1,0.00023,2]
[334560885,1723213868694,-150.1,0.00023,2]
[334560886,1723213868704,-150.1,0.00023,2]
[334560887,1723213868714,-150.1,0.00023,2]
[334560888,1723213868723,-150.1,0.00023,2]
[334560889,1723213868733,-150.1,0.00023,2]
[334560890,1723213868743,-150.1,0.00023,2]
[334560891,1723213868752,-150.1,0.00023,2]
[334560892,1723213868762,-150.1,0.00023,2]
[334560893,1723213868771,-150.1,0.00023,2]
[334560894,1723213868781,-150.1,0.00023,2]
[334560895,1723213868791,-150.1,0.00023,2]
[334560896,1723213868804,-150.1,0.00023,2]
[334560897,1723213868817,-150.1,0.00023,2]
[334560898,1723213868827,-150.1,0.00023,2]
[334560899,1723213868836,-150.1,0.00023,2]
[334560900,1723213868951,-150.1,0.00023,2]
[334560901,1723213868961,-366.61282358,0.0002302,4]
[334560902,1723213868971,-150.0,0.00023022,4]
[334560903,1723213868982,-600.0,0.00023072,2]
[334560904,1723213868992,-336.44,0.00023108,2]
[334560905,1723213869003,-500.0,0.00023108,2]
[334560906,1723213869012,-1061.12,0.00023108,2]
[334560907,1723213869022,-530.56,0.00023108,2]
[334560908,1723213869033,-150.0,0.00023108,2]
[334560909,1723213869043,-150.0,0.00023108,2]
[334560910,1723213869056,-150.0,0.00023108,2]
[334560911,1723213869066,-356.25,0.00023108,2]
[334560912,1723213869075,-150.0,0.00023108,2]
[334560913,1723213869085,-500.0,0.00023128,2]
[334560914,1723213869094,-800.0,0.0002313,2]
[334560915,1723213869103,-500.0,0.0002316,2]
[334560916,1723213869113,-366.61282358,0.00023162,4]
[334560917,1723213869123,-2800.0,0.00023162,2]
[334560918,1723213869133,-500.0,0.0002317,2]
[334560919,1723213869142,-150.0,0.00023174,4]
[334560920,1723213869152,-150.0,0.00023174,4]
[334560921,1723213869162,-500.0,0.00023177,2]
[334560922,1723213869172,-298.0,0.0002318,2]
[334560923,1723213869181,-200.0,0.0002318,2]
[334560924,1723213869191,-500.0,0.0002318,2]
[334560925,1723213869200,-180.0,0.00023205,2]
[334560926,1723213869209,-600.0,0.00023223,2]
[334560927,1723213869220,-2800.0,0.00023227,2]
[334560928,1723213869230,-150.0,0.0002325,2]
[334560929,1723213869239,-600.0,0.00023251,2]
[334560930,1723213869249,-500.0,0.00023272,2]
[334560931,1723213869259,-618.08634817,0.00023275,2]
[334560932,1723213869269,-606.05748009,0.00023287,5]
[334560933,1723213869278,-253.06495435,0.00023287,5]
[334560934,1723213869288,-379.98,0.00023288,2]
[334560935,1723213869298,-379.99,0.00023288,2]
[334560936,1723213869312,-380.0,0.00023288,2]
[334560937,1723213869322,-380.0,0.00023288,2]
[334560938,1723213869331,-380.0,0.00023288,2]
[334560939,1723213869341,-380.0,0.00023288,2]
[334560940,1723213869351,-380.0,0.00023288,2]
[334560941,1723213869360,-380.0,0.00023288,2]
[334560942,1723213869370,-398.49,0.00023288,2]
[334560943,1723213869380,-500.0,0.00023296,2]
[334560944,1723213869390,-1000.0,0.000233,2]
[334560945,1723213869400,-366.61282358,0.00023303,4]
[334560946,1723213869409,-500.0,0.0002331,2]
[334560947,1723213869425,-600.0,0.00023313,2]
[334560948,1723213869435,-900.0,0.00023314,2]
[334560949,1723213869444,-500.0,0.00023323,2]
[334560950,1723213869454,-150.0,0.00023326,4]
[334560951,1723213869466,-600.0,0.00023338,2]
[334560952,1723213869477,-3100.0,0.00023373,2]
[334560953,1723213869487,-500.0,0.00023439,2]
[334560954,1723213869498,-500.0,0.00023443,2]
[334560955,1723213869511,-366.61282358,0.00023444,4]
[334560956,1723213869522,-500.0,0.00023462,2]
[334560957,1723213869533,-150.0,0.00023478,4]
[334560958,1723213869544,-150.0,0.00023482,2]
[334560959,1723213869559,-1700.0,0.00023492,2]
[334560960,1723213869570,-600.0,0.00023497,2]
[334560961,1723213869582,-500.0,0.000235,12]
[334560962,1723213869591,-152.0,0.0002352,3]
[334560963,1723213869602,-500.0,0.00023568,2]
[334560964,1723213869613,-500.0,0.0002357,2]
[334560965,1723213869624,-366.61282358,0.00023586,4]
[334560966,1723213869633,-500.0,0.000236,10]
[334560967,1723213869643,-298.0,0.0002362,2]
[334560968,1723213869652,-200.0,0.0002362,2]
[334560969,1723213869662,-150.0,0.0002363,4]
[334560970,1723213869671,-500.0,0.00023653,2]
[334560971,1723213869682,-3100.0,0.00023655,2]
[334560972,1723213869693,-600.0,0.00023676,2]
[334560973,1723213869702,-1700.0,0.00023678,2]
[334560974,1723213869714,-2000.0,0.00023678,2]
[334560975,1723213869724,-3000.0,0.00023678,2]
[334560976,1723213869733,-3000.0,0.00023678,2]
[334560977,1723213869744,-500.0,0.00023686,2]
[334560978,1723213869754,-500.0,0.00023688,2]
[334560979,1723213869766,-500.0,0.000237,2]
[334560980,1723213869776,-500.0,0.00023727,2]
[334560981,1723213869786,-366.61282358,0.00023727,4]
[334560982,1723213869797,-500.0,0.00023744,2]
[334560983,1723213869810,-500.0,0.00023765,2]
[334560984,1723213869821,-600.0,0.00023772,2]
[334560985,1723213869832,-500.0,0.00023778,2]
[334560986,1723213869841,-150.0,0.00023783,4]
[334560987,1723213869850,-150.0,0.00023783,4]
[334560988,1723213869860,-32547.01449165,0.000238,14]
[334560989,1723213869869,-554.99379221,0.00023826,2]
[334560990,1723213869879,-500.0,0.00023829,2]
[334560991,1723213869889,-507.26587804,0.00023839,2]
[334560992,1723213869901,-600.0,0.00023846,2]
[334560993,1723213869910,-366.61282358,0.00023869,4]
[334560994,1723213869920,-500.0,0.00023872,2]
[334560995,1723213869929,-2800.0,0.0002388,2]
[334560996,1723213869939,-150.13,0.0002391,2]
[334560997,1723213869948,-500.0,0.00023912,2]
[334560998,1723213869957,-500.0,0.00023915,2]
[334560999,1723213869966,-362.37,0.00023916,2]
[334561000,1723213869975,-1000.0,0.00023924,10]
[334561001,1723213869986,-150.0,0.00023935,4]
[334561002,1723213869995,-500.0,0.00023947,2]
[334561003,1723213870005,-500.0,0.00023971,2]
[334561004,1723213870015,-150.0,0.00023984,2]
[334561005,1723213870024,-502.48417696,0.00024,4]
[334561006,1723213870033,-500.0,0.00024,10]
[334561007,1723213870042,-500.0,0.00024,10]
[334561008,1723213870051,-12118.21,0.00024,2]
[334561009,1723213870065,-2220.0,0.00024,2]
[334561010,1723213870082,-4982.4,0.00024,7]
[334561011,1723213870091,-2500.0,0.00024,2]
[334561012,1723213870101,-2256.42066835,0.00024,2]
[334561013,1723213870110,-18624.07389597,0.00024,2]
[334561014,1723213870119,-500.0,0.00024,2]
[334561015,1723213870129,-210.90840449,0.00024,2]
[334561016,1723213870139,-695.49258546,0.00024,2]
[334561017,1723213870148,-843.59915,0.00024,30]
[334561018,1723213870159,-900.0,0.00024,2]
[334561019,1723213870168,-963.91539866,0.00024,2]
[334561020,1723213870178,-400.0,0.00024,30]
[334561021,1723213870188,-300.0,0.00024,2]
[334561022,1723213870197,-10000.0,0.00024,2]
[334561023,1723213870206,-10000.0,0.00024,2]
[334561024,1723213870216,-10000.0,0.00024,2]
[334561025,1723213870225,-15549.09474251,0.00024,2]
[334561026,1723213870234,-10000.0,0.00024,2]
[334561027,1723213870244,-16425.44755903,0.00024,2]
[334561028,1723213870253,-10953.09826157,0.00024,2]
[334561029,1723213870263,-7568.17159559,0.00024,2]
[334561030,1723213870272,-10398.59998245,0.00024,2]
[334561031,1723213870281,-150.0,0.00024005,2]
[334561032,1723213870290,-366.61282358,0.0002401,4]
[334561033,1723213870300,-67151.25,0.00024011,10]
[334561034,1723213870319,-607.46029645,0.00024015,2]
[334561035,1723213870328,-25000.0,0.00024016,2]
[334561036,1723213870338,-150.0,0.00024026,2]
[334561037,1723213870347,-2996.51,0.00024027,2]
[334561038,1723213870357,-25000.0,0.0002404,2]
[334561039,1723213870366,-900.0,0.00024041,2]
[334561040,1723213870376,-500.0,0.00024044,2]
[334561041,1723213870385,-369.97,0.00024059,2]
[334561042,1723213870394,-298.0,0.0002406,2]
[334561043,1723213870404,-200.0,0.0002406,2]
[334561044,1723213870414,-204.0,0.0002406,2]
[334561045,1723213870424,-117486.51467669,0.00024064,2]
[334561046,1723213870437,-1700.0,0.00024074,2]
[334561047,1723213870446,-5000.0,0.00024079,2]
[334561048,1723213870456,-3054.32495968,0.0002408,2]
[334561049,1723213870465,-13091.8813483,0.00024084,2]
[334561050,1723213870476,-2416.3286436,0.00024084,2]
[334561051,1723213870485,-5292.290898,0.00024084,2]
[334561052,1723213870495,-5000.0,0.00024085,2]
[334561053,1723213870504,-4044.54,0.00024085,2]